{"text_format":"1","workbook":"xlsx","n_sheets":3,"sheets":["Western","Hunter-Jumper","Western Games"],"not_rendered":{"charts":0,"images":0,"macros":0,"external_links":0,"defined_names":0,"comments":0,"pivot_tables":0},"unopened":[],"bounds":{"document_bytes":16777216,"sheet_cells":100000,"rows_first":2000,"rows_last":500,"rows_between":2000,"halvings":0,"cell_chars":16384,"cell_head_chars":4096},"cells_cut":0,"cells_raw":0,"read":"whole","date_system":"1900"}

{"sheet":"Western","index":0,"n_rows":565,"n_cols":16,"rows_kept":565,"cut":false,"hidden":false,"merged":[[209,0,209,12],[219,0,219,12],[229,0,229,12],[239,0,239,12],[248,0,248,12],[247,0,247,12],[142,0,142,12],[170,0,170,12],[179,0,179,12],[189,0,189,12],[198,0,198,12],[125,0,125,12],[0,4,0,11],[3,0,3,12],[48,0,48,12],[82,0,82,12],[95,0,95,12],[108,0,108,12],[258,0,258,12],[259,0,259,12],[267,0,267,12],[278,0,278,12],[290,0,290,12],[292,0,292,12],[293,0,293,12],[294,0,294,12],[295,0,295,12],[291,0,291,12],[297,0,297,12],[298,0,298,12],[308,0,308,12],[321,0,321,12],[336,0,336,12],[345,0,345,12],[354,0,354,12],[355,0,355,12],[366,0,366,12],[375,0,375,12],[390,0,390,12],[391,0,391,12],[411,0,411,12],[433,0,433,12],[453,0,453,12],[510,0,510,12],[522,0,522,12],[538,0,538,12],[551,0,551,12],[462,0,462,12],[472,0,472,12],[473,0,473,12],[485,0,485,12],[500,0,500,12]]}
[null,null,null,null,"PLACINGS",null,null,null,null,null,null,null,"TOTAL ",null,null,"\"X\" is not entered"]
["Class #","Exhibitor#","EXHIBITOR","HORSE","2019-06-23","pts","2019-07-14","pts","2019-07-28","pts","2019-08-11","pts","POINTS","Champion","Reserve","\"srtch\" scratched the class"]
["HALTER DIVISION",null,null,null,null,null,null,null,null,null,null,null,null,null,null,"\"E\"  eliminated"]
["1 - Youth (18yrs and under)"]
[null,323,"Brooklyn Burke","Bring Mama Flowers","2nd",4,null,null,null,null,null,null,{"$f":"F5+H5+J5+L5","v":4}]
[null,1845,"Emily Anderson","Macs Mia Bella","1st",5,null,null,null,null,null,null,5]
[null,330,"Gracie Costello","Lil Jimmy White Socks","5th",1,null,null,null,null,null,null,1]
[null,343,"Priscilla Munevar-Pelton","Tally","4th",2,null,null,null,null,null,null,2]
[null,347,"Leah Prosper","Topper","3rd",3,null,null,null,null,null,null,3]
[null,null,null,null,null,null,null,null,null,null,null,null,0]
[null,null,null,null,null,null,null,null,null,null,null,null,0]
[null,null,null,null,null,null,null,null,null,null,null,null,0]
[null,null,null,null,null,null,null,null,null,null,null,null,0]
[null,null,null,null,null,null,null,null,null,null,null,null,0]
[null,null,null,null,null,null,null,null,null,null,null,null,0]
[null,null,null,null,null,null,null,null,null,null,null,null,0]
[null,null,null,null,null,null,null,null,null,null,null,null,0]
[null,null,null,null,null,null,null,null,null,null,null,null,0]
[null,null,null,null,null,null,null,null,null,null,null,null,0]
[null,null,null,null,null,null,null,null,null,null,null,null,0]
["2 - Adult - Mare"]
[null,199,"Ashley Hauver","SE Lets Elope","1st",1,null,null,null,null,null,null,{"$f":"F22+H22+J22+L22","v":1}]
[null,null,null,null,null,null,null,null,null,null,null,null,0]
[null,null,null,null,null,null,null,null,null,null,null,null,0]
[null,null,null,null,null,null,null,null,null,null,null,null,0]
[null,null,null,null,null,null,null,null,null,null,null,null,0]
[null,null,null,null,null,null,null,null,null,null,null,null,0]
[null,null,null,null,null,null,null,null,null,null,null,null,0]
[null,null,null,null,null,null,null,null,null,null,null,null,0]
[null,null,null,null,null,null,null,null,null,null,null,null,0]
[null,null,null,null,null,null,null,null,null,null,null,null,0]
[null,null,null,null,null,null,null,null,null,null,null,null,0]
["3 - Adult - Gelding-Stallion"]
[null,141,"Tracey Scott","Hez Flat Out Gifted","1st",6,null,null,null,null,null,null,{"$f":"F34+H34+J34+L34","v":6}]
[null,71,"Corey Wendelken","Mr. Big Time Money","4th",1,null,null,null,null,null,null,1]
[null,566,"Laura Coburn","Fred","2nd",3,null,null,null,null,null,null,3]
[null,131,"Michelle Roger","Dream's My Dad","3rd",2,null,null,null,null,null,null,2]
[null,null,null,null,null,null,null,null,null,null,null,null,0]
[null,null,null,null,null,null,null,null,null,null,null,null,0]
[null,null,null,null,null,null,null,null,null,null,null,null,0]
[null,null,null,null,null,null,null,null,null,null,null,null,0]
[null,null,null,null,null,null,null,null,null,null,null,null,0]
[null,null,null,null,null,null,null,null,null,null,null,null,0]
[null,null,null,null,null,null,null,null,null,null,null,null,0]
[null,null,null,null,null,null,null,null,null,null,null,null,0]
[null,null,null,null,null,null,null,null,null,null,null,null,0]
[null,null,null,null,null,null,null,null,null,null,null,null,0]
["SHOWMANSHIP DIVISION"]
["5 - Small Fry (youth 8 yrs & under)"]
[null,null,null,null,"X",null,null,null,null,null,null,null,{"$f":"F50+H50+J50+L50","v":0}]
[null,null,null,null,"X",null,null,null,null,null,null,null,0]
[null,null,null,null,"X",null,null,null,null,null,null,null,0]
[null,null,null,null,"X",null,null,null,null,null,null,null,0]
[null,null,null,null,"X",null,null,null,null,null,null,null,0]
[null,null,null,null,null,null,null,null,null,null,null,null,0]
[null,null,null,null,null,null,null,null,null,null,null,null,0]
[null,null,null,null,null,null,null,null,null,null,null,null,0]
[null,null,null,null,null,null,null,null,null,null,null,null,0]
[null,null,null,null,null,null,null,null,null,null,null,null,0]
[null,null,null,null,null,null,null,null,null,null,null,null,0]
[null,null,null,null,null,null,null,null,null,null,null,null,{"$f":"F61+H61+J61+L61","v":0}]
[null,null,null,null,null,null,null,null,null,null,null,null,0]
[null,null,null,null,null,null,null,null,null,null,null,null,0]
[null,null,null,null,null,null,null,null,null,null,null,null,0]
[null,null,null,null,null,null,null,null,null,null,null,null,0]
[null,null,null,null,null,null,null,null,null,null,null,null,0]
["6 - Youth 18 yrs & under"]
[null,323,"Brooklyn Burke","Bring Mama Flowers","1st",4,null,null,null,null,null,null,{"$f":"F68+H68+J68+L68","v":4}]
[null,1845,"Emily Anderson","Macs Mia Bella","2nd",3,null,null,null,null,null,null,3]
[null,330,"Gracie Costello","Lil Jimmy White Socks","3rd",2,null,null,null,null,null,null,2]
[null,343,"Priscilla Munevar-Pelton","Tally","4th",1,null,null,null,null,null,null,1]
[null,null,null,null,null,null,null,null,null,null,null,null,0]
[null,null,null,null,null,null,null,null,null,null,null,null,0]
[null,null,null,null,null,null,null,null,null,null,null,null,0]
[null,null,null,null,null,null,null,null,null,null,null,null,0]
[null,null,null,null,null,null,null,null,null,null,null,null,0]
[null,null,null,null,null,null,null,null,null,null,null,null,0]
[null,null,null,null,null,null,null,null,null,null,null,null,0]
[null,null,null,null,null,null,null,null,null,null,null,null,0]
[null,null,null,null,null,null,null,null,null,null,null,null,0]
[null,null,null,null,null,null,null,null,null,null,null,null,0]
[null,null,null,null,null,null,null,null,null,null,null,null,0]
["7 - Adult"]
[null,141,"Tracey Scott","Hez Flat Out Gifted","1st",2,null,null,null,null,null,null,{"$f":"F84+H84+J84+L84","v":2}]
[null,71,"Corey Wendelken","Mr. Big Time Money","2nd",1,null,null,null,null,null,null,1]
[null,null,null,null,null,null,null,null,null,null,null,null,0]
[null,null,null,null,null,null,null,null,null,null,null,null,0]
[null,null,null,null,null,null,null,null,null,null,null,null,0]
[null,null,null,null,null,null,null,null,null,null,null,null,0]
[null,null,null,null,null,null,null,null,null,null,null,null,0]
[null,null,null,null,null,null,null,null,null,null,null,null,0]
[null,null,null,null,null,null,null,null,null,null,null,null,0]
[null,null,null,null,null,null,null,null,null,null,null,null,0]
[null,null,null,null,null,null,null,null,null,null,null,null,0]
[null,null,null,null,null,null,null,null,null,null,null,null,0]
["8 - Yearling Lunge Line"]
[null,null,null,null,"X",null,null,null,null,null,null,null,0]
[null,null,null,null,"X",null,null,null,null,null,null,null,0]
[null,null,null,null,"X",null,null,null,null,null,null,null,0]
[null,null,null,null,"X",null,null,null,null,null,null,null,0]
[null,null,null,null,"X",null,null,null,null,null,null,null,0]
[null,null,null,null,null,null,null,null,null,null,null,null,0]
[null,null,null,null,null,null,null,null,null,null,null,null,0]
[null,null,null,null,null,null,null,null,null,null,null,null,0]
[null,null,null,null,null,null,null,null,null,null,null,null,0]
[null,null,null,null,null,null,null,null,null,null,null,null,0]
[null,null,null,null,null,null,null,null,null,null,null,null,0]
[null,null,null,null,null,null,null,null,null,null,null,null,0]
["9 - 2 yr old Lunge Line"]
[null,null,null,null,"X",null,null,null,null,null,null,null,0]
[null,null,null,null,"X",null,null,null,null,null,null,null,0]
[null,null,null,null,"X",null,null,null,null,null,null,null,0]
[null,null,null,null,"X",null,null,null,null,null,null,null,0]
[null,null,null,null,"X",null,null,null,null,null,null,null,0]
[null,null,null,null,null,null,null,null,null,null,null,null,0]
[null,null,null,null,null,null,null,null,null,null,null,null,0]
[null,null,null,null,null,null,null,null,null,null,null,null,0]
[null,null,null,null,null,null,null,null,null,null,null,null,0]
[null,null,null,null,null,null,null,null,null,null,null,null,0]
[null,null,null,null,null,null,null,null,null,null,null,null,0]
[null,null,null,null,null,null,null,null,null,null,null,null,0]
[null,null,null,null,null,null,null,null,null,null,null,null,0]
[null,null,null,null,null,null,null,null,null,null,null,null,0]
[null,null,null,null,null,null,null,null,null,null,null,null,0]
["ENGLISH UNDER SADDLE"]
["10 - Youth - 18 and under"]
[null,343,"Priscilla Munevar-Pelton","Tally","2nd",1,null,null,null,null,null,null,{"$f":"F127+H127+J127+L127","v":1}]
[null,347,"Leah Prosper","Topper","1st",2,null,null,null,null,null,null,2]
[null,null,null,null,null,null,null,null,null,null,null,null,0]
[null,null,null,null,null,null,null,null,null,null,null,null,0]
[null,null,null,null,null,null,null,null,null,null,null,null,0]
[null,null,null,null,null,null,null,null,null,null,null,null,0]
[null,null,null,null,null,null,null,null,null,null,null,null,0]
[null,null,null,null,null,null,null,null,null,null,null,null,0]
[null,null,null,null,null,null,null,null,null,null,null,null,0]
[null,null,null,null,null,null,null,null,null,null,null,null,0]
[null,null,null,null,null,null,null,null,null,null,null,null,{"$f":"F137+H137+J137+L137","v":0}]
[null,null,null,null,null,null,null,null,null,null,null,null,0]
[null,null,null,null,null,null,null,null,null,null,null,null,0]
[null,null,null,null,null,null,null,null,null,null,null,null,0]
[null,null,null,null,null,null,null,null,null,null,null,null,0]
[null,null,null,null,null,null,null,null,null,null,null,null,0]
["11 - Adult"]
[null,141,"Tracey Scott","Hez Flat Out Gifted","4th",1,null,null,null,null,null,null,{"$f":"F144+H144+J144+L144","v":1}]
[null,175,"Cheyanne Wheeler","The Western Flirt","3rd",2,null,null,null,null,null,null,2]
[null,71,"Corey Wendelken","Mr. Big Time Money","1st",4,null,null,null,null,null,null,4]
[null,246,"Diane Pelton","Tally","2nd",3,null,null,null,null,null,null,3]
[null,null,null,null,null,null,null,null,null,null,null,null,0]
[null,null,null,null,null,null,null,null,null,null,null,null,0]
[null,null,null,null,null,null,null,null,null,null,null,null,0]
[null,null,null,null,null,null,null,null,null,null,null,null,0]
[null,null,null,null,null,null,null,null,null,null,null,null,0]
[null,null,null,null,null,null,null,null,null,null,null,null,0]
[null,null,null,null,null,null,null,null,null,null,null,null,0]
[null,null,null,null,null,null,null,null,null,null,null,null,{"$f":"F155+H155+J155+L155","v":0}]
[null,null,null,null,null,null,null,null,null,null,null,null,0]
[null,null,null,null,null,null,null,null,null,null,null,null,0]
[null,null,null,null,null,null,null,null,null,null,null,null,0]
[null,null,null,null,null,null,null,null,null,null,null,null,0]
[null,null,null,null,null,null,null,null,null,null,null,null,0]
[null,null,null,null,null,null,null,null,null,null,null,null,0]
[null,null,null,null,null,null,null,null,null,null,null,null,0]
[null,null,null,null,null,null,null,null,null,null,null,null,0]
[null,null,null,null,null,null,null,null,null,null,null,null,0]
[null,null,null,null,null,null,null,null,null,null,null,null,0]
[null,null,null,null,null,null,null,null,null,null,null,null,0]
[null,null,null,null,null,null,null,null,null,null,null,null,0]
[null,null,null,null,null,null,null,null,null,null,null,null,0]
[null,null,null,null,null,null,null,null,null,null,null,null,0]
[null,null,null,null,null,null,null,null,null,null,null,null,0]
["12 - Novice Adult"]
[null,null,null,null,"X",null,null,null,null,null,null,null,{"$f":"F172+H172+J172+L172","v":0}]
[null,null,null,null,"X",null,null,null,null,null,null,null,{"$f":"F173+H173+J173+L173","v":0}]
[null,null,null,null,"X",null,null,null,null,null,null,null,0]
[null,null,null,null,"X",null,null,null,null,null,null,null,0]
[null,null,null,null,"X",null,null,null,null,null,null,null,0]
[null,null,null,null,null,null,null,null,null,null,null,null,0]
[null,null,null,null,null,null,null,null,null,null,null,null,0]
[null,null,null,null,null,null,null,null,null,null,null,null,0]
["13 - Adult Walk/Trot"]
[null,null,null,null,"X",null,null,null,null,null,null,null,0]
[null,null,null,null,"X",null,null,null,null,null,null,null,0]
[null,null,null,null,"X",null,null,null,null,null,null,null,0]
[null,null,null,null,"X",null,null,null,null,null,null,null,0]
[null,null,null,null,"X",null,null,null,null,null,null,null,{"$f":"F185+H185+J185+L185","v":0}]
[null,null,null,null,null,null,null,null,null,null,null,null,{"$f":"F186+H186+J186+L186","v":0}]
[null,null,null,null,null,null,null,null,null,null,null,null,{"$f":"F187+H187+J187+L187","v":0}]
[null,null,null,null,null,null,null,null,null,null,null,null,0]
[null,null,null,null,null,null,null,null,null,null,null,null,0]
["14 - Youth Walk/Trot"]
[null,1845,"Emily Anderson","Macs Mia Bella","1st",1,null,null,null,null,null,null,1]
[null,null,null,null,null,null,null,null,null,null,null,null,0]
[null,null,null,null,null,null,null,null,null,null,null,null,0]
[null,null,null,null,null,null,null,null,null,null,null,null,0]
[null,null,null,null,null,null,null,null,null,null,null,null,0]
[null,null,null,null,null,null,null,null,null,null,null,null,0]
[null,null,null,null,null,null,null,null,null,null,null,null,0]
["ENGLISH EQUITATION DIVISION"]
["15 - Youth 18 yrs & under (WTC Pattern Class)"]
[null,343,"Priscilla Munevar-Pelton","Tally","1st",2,null,null,null,null,null,null,{"$f":"F200+H200+J200+L200","v":2}]
[null,347,"Leah Prosper","Topper","2nd",1,null,null,null,null,null,null,1]
[null,null,null,null,null,null,null,null,null,null,null,null,0]
[null,null,null,null,null,null,null,null,null,null,null,null,0]
[null,null,null,null,null,null,null,null,null,null,null,null,0]
[null,null,null,null,null,null,null,null,null,null,null,null,0]
[null,null,null,null,null,null,null,null,null,null,null,null,0]
[null,null,null,null,null,null,null,null,null,null,null,null,0]
[null,null,null,null,null,null,null,null,null,null,null,null,0]
[null,null,null,null,null,null,null,null,null,null,null,null,0]
["16 - Adult (WTC Pattern Class)"]
[null,175,"Cheyanne Wheeler","The Western Flirt","1st",2,null,null,null,null,null,null,{"$f":"F211+H211+J211+L211","v":2}]
[null,71,"Corey Wendelken","Mr. Big Time Money","2nd",1,null,null,null,null,null,null,{"$f":"F212+H212+J212+L212","v":1}]
[null,null,null,null,null,null,null,null,null,null,null,null,0]
[null,null,null,null,null,null,null,null,null,null,null,null,0]
[null,null,null,null,null,null,null,null,null,null,null,null,0]
[null,null,null,null,null,null,null,null,null,null,null,null,0]
[null,null,null,null,null,null,null,null,null,null,null,null,0]
[null,null,null,null,null,null,null,null,null,null,null,null,0]
[null,null,null,null,null,null,null,null,null,null,null,null,0]
["17 - Novice Adult (WTC Pattern Class)"]
[null,null,null,null,"X",null,null,null,null,null,null,null,0]
[null,null,null,null,"X",null,null,null,null,null,null,null,0]
[null,null,null,null,"X",null,null,null,null,null,null,null,0]
[null,null,null,null,"X",null,null,null,null,null,null,null,0]
[null,null,null,null,"X",null,null,null,null,null,null,null,0]
[null,null,null,null,null,null,null,null,null,null,null,null,0]
[null,null,null,null,null,null,null,null,null,null,null,null,0]
[null,null,null,null,null,null,null,null,null,null,null,null,0]
[null,null,null,null,null,null,null,null,null,null,null,null,0]
["18 - Adult Walk/Trot"]
[null,null,null,null,"X",null,null,null,null,null,null,null,0]
[null,null,null,null,"X",null,null,null,null,null,null,null,0]
[null,null,null,null,"X",null,null,null,null,null,null,null,0]
[null,null,null,null,"X",null,null,null,null,null,null,null,0]
[null,null,null,null,"X",null,null,null,null,null,null,null,0]
[null,null,null,null,null,null,null,null,null,null,null,null,0]
[null,null,null,null,null,null,null,null,null,null,null,null,0]
[null,null,null,null,null,null,null,null,null,null,null,null,{"$f":"F238+H238+J238+L238","v":0}]
[null,null,null,null,null,null,null,null,null,null,null,null,{"$f":"F239+H239+J239+L239","v":0}]
["19 - Youth Walk/Trot"]
[null,1845,"Emily Anderson","Macs Mia Bella","1st",2,null,null,null,null,null,null,{"$f":"F241+H241+J241+L241","v":2}]
[null,335,"Mattea Pantelone","Holly","2nd",1,null,null,null,null,null,null,{"$f":"F242+H242+J242+L242","v":1}]
[null,null,null,null,null,null,null,null,null,null,null,null,0]
[null,null,null,null,null,null,null,null,null,null,null,null,0]
[null,null,null,null,null,null,null,null,null,null,null,null,0]
[null,null,null,null,null,null,null,null,null,null,null,null,0]
[null,null,null,null,null,null,null,null,null,null,null,null,0]
["LEADLINE DIVISION"]
["20 - Leadline  (English/Western) - 8 yrs & under"]
[null,null,null,null,"X",null,null,null,null,null,null,null,{"$f":"F250+H250+J250+L250","v":0}]
[null,null,null,null,"X",null,null,null,null,null,null,null,{"$f":"F251+H251+J251+L251","v":0}]
[null,null,null,null,"X",null,null,null,null,null,null,null,0]
[null,null,null,null,"X",null,null,null,null,null,null,null,0]
[null,null,null,null,"X",null,null,null,null,null,null,null,{"$f":"F254+H254+J254+L254","v":0}]
[null,null,null,null,null,null,null,null,null,null,null,null,{"$f":"F255+H255+J255+L255","v":0}]
[null,null,null,null,null,null,null,null,null,null,null,null,{"$f":"F256+H256+J256+L256","v":0}]
[null,null,null,null,null,null,null,null,null,null,null,null,{"$f":"F257+H257+J257+L257","v":0}]
[null,null,null,null,null,null,null,null,null,null,null,null,{"$f":"F258+H258+J258+L258","v":0}]
["COMMAND  DIVISION (ENGLISH/WESTERN)(WTC)"]
["21 - Elite (45 yrs & over)"]
[null,131,"Michelle Roger","Dream's My Dad","2nd",1,null,null,null,null,null,null,{"$f":"F261+H261+J261+L261","v":1}]
[null,345,"Donna Livingston","Juice","1st",2,null,null,null,null,null,null,{"$f":"F262+H262+J262+L262","v":2}]
[null,null,null,null,null,null,null,null,null,null,null,null,{"$f":"F263+H263+J263+L263","v":0}]
[null,null,null,null,null,null,null,null,null,null,null,null,0]
[null,null,null,null,null,null,null,null,null,null,null,null,0]
[null,null,null,null,null,null,null,null,null,null,null,null,0]
[null,null,null,null,null,null,null,null,null,null,null,null,0]
["22 - Youth (18 yrs & under)"]
[null,323,"Brooklyn Burke","Bring Mama Flowers","3rd",3,null,null,null,null,null,null,{"$f":"F269+H269+J269+L269","v":3}]
[null,330,"Gracie Costello","Lil Jimmy White Socks","4th",2,null,null,null,null,null,null,{"$f":"F270+H270+J270+L270","v":2}]
[null,343,"Priscilla Munevar-Pelton","Tally","5th",1,null,null,null,null,null,null,{"$f":"F271+H271+J271+L271","v":1}]
[null,347,"Leah Prosper","Topper","1st",5,null,null,null,null,null,null,{"$f":"F272+H272+J272+L272","v":5}]
[null,176,"Ben Scharf","Destined to Dream","2nd",4,null,null,null,null,null,null,4]
[null,null,null,null,null,null,null,null,null,null,null,null,0]
[null,null,null,null,null,null,null,null,null,null,null,null,0]
[null,null,null,null,null,null,null,null,null,null,null,null,0]
[null,null,null,null,null,null,null,null,null,null,null,null,0]
[null,null,null,null,null,null,null,null,null,null,null,null,0]
["23 - Adult"]
[null,131,"Michelle Roger","Dream's My Dad","6th",1,null,null,null,null,null,null,1]
[null,175,"Cheyanne Wheeler","The Western Flirt","3rd",4,null,null,null,null,null,null,4]
[null,71,"Corey Wendelken","Mr. Big Time Money","2nd",5,null,null,null,null,null,null,5]
[null,295,"Larry Murray","Cali","4th",3,null,null,null,null,null,null,3]
[null,129,"Melissa Leduc","Liberty","5th",2,null,null,null,null,null,null,2]
[null,128,"Renee Armstrong","Jista Prince Robin","1st",6,null,null,null,null,null,null,6]
[null,null,null,null,null,null,null,null,null,null,null,null,0]
[null,null,null,null,null,null,null,null,null,null,null,null,{"$f":"F287+H287+J287+L287","v":0}]
[null,null,null,null,null,null,null,null,null,null,null,null,{"$f":"F288+H288+J288+L288","v":0}]
[null,null,null,null,null,null,null,null,null,null,null,null,0]
[null,null,null,null,null,null,null,null,null,null,null,null,0]
["24 - Jackpot Command - Open - 20% to Club  (NO POINTS)"]
["25 - Green Horse - (ENGLISH/WESTERN)(WT/J) (NO POINTS)"]
["26 - Sit-A-Buck  (NO POINTS)"]
["27 - Egg & Spoon - Youth 18 yrs & under  (NO POINTS)"]
["28 - Water Class  (NO POINTS)"]
["29 - Costume - All ages  (NO POINTS)"]
[]
["WESTERN PLEASURE DIVISION"]
["30 - Youth (18 yrs & under)"]
[null,323,"Brooklyn Burke","Bring Mama Flowers","4th",2,null,null,null,null,null,null,2]
[null,330,"Gracie Costello","Lil Jimmy White Socks","1st",5,null,null,null,null,null,null,5]
[null,343,"Priscilla Munevar-Pelton","Tally","3rd",3,null,null,null,null,null,null,3]
[null,347,"Leah Prosper","Topper","2nd",4,null,null,null,null,null,null,4]
[null,176,"Ben Scharf","Destined to Dream","5th",1,null,null,null,null,null,null,1]
[null,null,null,null,null,null,null,null,null,null,null,null,0]
[null,null,null,null,null,null,null,null,null,null,null,null,0]
[null,null,null,null,null,null,null,null,null,null,null,null,0]
[null,null,null,null,null,null,null,null,null,null,null,null,0]
["31 - Adult"]
[null,141,"Tracey Scott","Hez Flat Out Gifted","1st",5,null,null,null,null,null,null,{"$f":"F310+H310+J310+L310","v":5}]
[null,131,"Michelle Roger","Dream's My Dad","2nd",4,null,null,null,null,null,null,4]
[null,175,"Cheyanne Wheeler","The Western Flirt","5th",1,null,null,null,null,null,null,1]
[null,71,"Corey Wendelken","Mr Big Time Money","4th",2,null,null,null,null,null,null,2]
[null,234,"Wendy Stewart","Just for Snickers","3rd",3,null,null,null,null,null,null,3]
[null,null,null,null,null,null,null,null,null,null,null,null,0]
[null,null,null,null,null,null,null,null,null,null,null,null,0]
[null,null,null,null,null,null,null,null,null,null,null,null,0]
[null,null,null,null,null,null,null,null,null,null,null,null,0]
[null,null,null,null,null,null,null,null,null,null,null,null,0]
[null,null,null,null,null,null,null,null,null,null,null,null,0]
[null,null,null,null,null,null,null,null,null,null,null,null,0]
["32 - Novice Adult"]
[null,null,null,null,"X",null,null,null,null,null,null,null,{"$f":"F323+H323+J323+L323","v":0}]
[null,null,null,null,"X",null,null,null,null,null,null,null,0]
[null,null,null,null,"X",null,null,null,null,null,null,null,0]
[null,null,null,null,"X",null,null,null,null,null,null,null,0]
[null,null,null,null,"X",null,null,null,null,null,null,null,0]
[null,null,null,null,null,null,null,null,null,null,null,null,0]
[null,null,null,null,null,null,null,null,null,null,null,null,0]
[null,null,null,null,null,null,null,null,null,null,null,null,0]
[null,null,null,null,null,null,null,null,null,null,null,null,0]
[null,null,null,null,null,null,null,null,null,null,null,null,0]
[null,null,null,null,null,null,null,null,null,null,null,null,0]
[null,null,null,null,null,null,null,null,null,null,null,null,0]
[null,null,null,null,null,null,null,null,null,null,null,null,0]
[null,null,null,null,null,null,null,null,null,null,null,null,0]
["33 - Adult Walk/Trot"]
[null,327,"Alec Hucul","DF Taken Advantage","3rd",1,null,null,null,null,null,null,{"$f":"F338+H338+J338+L338","v":1}]
[null,285,"Dominique Murray","Whisper","1st",3,null,null,null,null,null,null,3]
[null,199,"Ashley Hauver","SE Lets Elope","2nd",2,null,null,null,null,null,null,2]
[null,null,null,null,null,null,null,null,null,null,null,null,0]
[null,null,null,null,null,null,null,null,null,null,null,null,0]
[null,null,null,null,null,null,null,null,null,null,null,null,0]
[null,null,null,null,null,null,null,null,null,null,null,null,0]
[null,null,null,null,null,null,null,null,null,null,null,null,0]
["34 - Youth Walk/Trot"]
[null,1845,"Emily Anderson","Macs Mia Bella","1st",3,null,null,null,null,null,null,3]
[null,306,"Scarlette Hucul","The Western Flirt","2nd",2,null,null,null,null,null,null,2]
[null,194,"Clare Scharf","Catch My Draft","3rd",1,null,null,null,null,null,null,1]
[null,null,null,null,null,null,null,null,null,null,null,null,0]
[null,null,null,null,null,null,null,null,null,null,null,null,0]
[null,null,null,null,null,null,null,null,null,null,null,null,0]
[null,null,null,null,null,null,null,null,null,null,null,null,0]
[null,null,null,null,null,null,null,null,null,null,null,null,0]
["REINING DIVISION"]
["35 - Adult - Pattern 6 (same for all four shows)"]
[null,295,"Larry Murray","Cali","1st",1,null,null,null,null,null,null,{"$f":"F357+H357+J357+L357","v":1}]
[null,null,null,null,null,null,null,null,null,null,null,null,0]
[null,null,null,null,null,null,null,null,null,null,null,null,0]
[null,null,null,null,null,null,null,null,null,null,null,null,0]
[null,null,null,null,null,null,null,null,null,null,null,null,0]
[null,null,null,null,null,null,null,null,null,null,null,null,0]
[null,null,null,null,null,null,null,null,null,null,null,null,0]
[null,null,null,null,null,null,null,null,null,null,null,null,0]
[null,null,null,null,null,null,null,null,null,null,null,null,0]
[null,null,null,null,null,null,null,null,null,null,null,null,0]
["36 - Youth - Pattern 6 (same for all four shows)"]
[null,null,null,null,"X",null,null,null,null,null,null,null,{"$f":"F368+H368+J368+L368","v":0}]
[null,null,null,null,"X",null,null,null,null,null,null,null,0]
[null,null,null,null,"X",null,null,null,null,null,null,null,0]
[null,null,null,null,"X",null,null,null,null,null,null,null,0]
[null,null,null,null,"X",null,null,null,null,null,null,null,0]
[null,null,null,null,null,null,null,null,null,null,null,null,0]
[null,null,null,null,null,null,null,null,null,null,null,null,0]
[null,null,null,null,null,null,null,null,null,null,null,null,0]
["37 -  Ranch Riding - Pattern 3 (same for all four shows)"]
[null,71,"Corey Wendelken","Mr Big Time Money","5th",2,null,null,null,null,null,null,{"$f":"F377+H377+J377+L377","v":2}]
[null,295,"Larry Murray","Cali","3rd",4,null,null,null,null,null,null,4]
[null,234,"Wendy Stewart","Just for Snickers","1st",6,null,null,null,null,null,null,6]
[null,128,"Renee Armstrong","Jista Prince Robin","4th",3,null,null,null,null,null,null,3]
[null,129,"Melissa Leduc","Liberty","2nd",5,null,null,null,null,null,null,5]
[null,347,"Leah Prosper","Topper","6th",1,null,null,null,null,null,null,1]
[null,null,null,null,null,null,null,null,null,null,null,null,0]
[null,null,null,null,null,null,null,null,null,null,null,null,{"$f":"F384+H384+J384+L384","v":0}]
[null,null,null,null,null,null,null,null,null,null,null,null,0]
[null,null,null,null,null,null,null,null,null,null,null,null,0]
[null,null,null,null,null,null,null,null,null,null,null,null,0]
[null,null,null,null,null,null,null,null,null,null,null,null,0]
[null,null,null,null,null,null,null,null,null,null,null,null,0]
[null,null,null,null,null,null,null,null,null,null,null,null,0]
["WESTERN PLEASURE DIVISION"]
["38 - Youth (WTL - Pattern Class)"]
[null,323,"Brooklyn Burke","Bring Mama Flowers","2nd",4,null,null,null,null,null,null,{"$f":"F393+H393+J393+L393","v":4}]
[null,330,"Gracie Costello","Lil Jimmy White Socks","3rd",3,null,null,null,null,null,null,3]
[null,343,"Priscilla Munevar-Pelton","Tally","5th",1,null,null,null,null,null,null,1]
[null,347,"Leah Prosper","Topper","1st",5,null,null,null,null,null,null,5]
[null,176,"Ben Scharf","Destined to Dream","4th",2,null,null,null,null,null,null,2]
[null,null,null,null,null,null,null,null,null,null,null,null,0]
[null,null,null,null,null,null,null,null,null,null,null,null,0]
[null,null,null,null,null,null,null,null,null,null,null,null,0]
[null,null,null,null,null,null,null,null,null,null,null,null,0]
[null,null,null,null,null,null,null,null,null,null,null,null,{"$f":"F402+H402+J402+L402","v":0}]
[null,null,null,null,null,null,null,null,null,null,null,null,0]
[null,null,null,null,null,null,null,null,null,null,null,null,{"$f":"F404+H404+J404+L404","v":0}]
[null,null,null,null,null,null,null,null,null,null,null,null,0]
[null,null,null,null,null,null,null,null,null,null,null,null,0]
[null,null,null,null,null,null,null,null,null,null,null,null,0]
[null,null,null,null,null,null,null,null,null,null,null,null,0]
[null,null,null,null,null,null,null,null,null,null,null,null,0]
[null,null,null,null,null,null,null,null,null,null,null,null,0]
[null,null,null,null,null,null,null,null,null,null,null,null,0]
["39 - Adult  (WTL - Pattern Class)"]
[null,141,"Tracey Scott","Hez Flat Out Gifted","1st",5,null,null,null,null,null,null,{"$f":"F413+H413+J413+L413","v":5}]
[null,175,"Cheyanne Wheeler","The Western Flirt","5th",1,null,null,null,null,null,null,1]
[null,71,"Corey Wendelken","Mr Big Time Money","2nd",4,null,null,null,null,null,null,4]
[null,295,"Larry Murray","Cali","4th",2,null,null,null,null,null,null,2]
[null,234,"Wendy Stewart","Just for Snickers","3rd",3,null,null,null,null,null,null,3]
[null,null,null,null,null,null,null,null,null,null,null,null,0]
[null,null,null,null,null,null,null,null,null,null,null,null,0]
[null,null,null,null,null,null,null,null,null,null,null,null,0]
[null,null,null,null,null,null,null,null,null,null,null,null,0]
[null,null,null,null,null,null,null,null,null,null,null,null,0]
[null,null,null,null,null,null,null,null,null,null,null,null,0]
[null,null,null,null,null,null,null,null,null,null,null,null,0]
[null,null,null,null,null,null,null,null,null,null,null,null,0]
[null,null,null,null,null,null,null,null,null,null,null,null,0]
[null,null,null,null,null,null,null,null,null,null,null,null,0]
[null,null,null,null,null,null,null,null,null,null,null,null,0]
[null,null,null,null,null,null,null,null,null,null,null,null,0]
[null,null,null,null,null,null,null,null,null,null,null,null,0]
[null,null,null,null,null,null,null,null,null,null,null,null,0]
[null,null,null,null,null,null,null,null,null,null,null,null,0]
[null,null,null,null,null,null,null,null,null,null,null,null,0]
["40 - Novice Adult - (WTL - Pattern Class)"]
[null,null,null,null,"X",null,null,null,null,null,null,null,{"$f":"F435+H435+J435+L435","v":0}]
[null,null,null,null,"X",null,null,null,null,null,null,null,0]
[null,null,null,null,"X",null,null,null,null,null,null,null,0]
[null,null,null,null,"X",null,null,null,null,null,null,null,0]
[null,null,null,null,"X",null,null,null,null,null,null,null,0]
[null,null,null,null,null,null,null,null,null,null,null,null,0]
[null,null,null,null,null,null,null,null,null,null,null,null,0]
[null,null,null,null,null,null,null,null,null,null,null,null,0]
[null,null,null,null,null,null,null,null,null,null,null,null,0]
[null,null,null,null,null,null,null,null,null,null,null,null,0]
[null,null,null,null,null,null,null,null,null,null,null,null,0]
[null,null,null,null,null,null,null,null,null,null,null,null,0]
[null,null,null,null,null,null,null,null,null,null,null,null,0]
[null,null,null,null,null,null,null,null,null,null,null,null,0]
[null,null,null,null,null,null,null,null,null,null,null,null,0]
[null,null,null,null,null,null,null,null,null,null,null,null,0]
[null,null,null,null,null,null,null,null,null,null,null,null,0]
[null,null,null,null,null,null,null,null,null,null,null,null,0]
[null,null,null,null,null,null,null,null,null,null,null,null,0]
["41 - Adult Walk/Jog  (WT - Pattern Class)"]
[null,327,"Alec Hucul","DF Taken Advantage","2nd",2,null,null,null,null,null,null,{"$f":"F455+H455+J455+L455","v":2}]
[null,285,"Dominique Murray","Whisper","1st",3,null,null,null,null,null,null,3]
[null,199,"Ashley Hauver","SE Lets Elope","3rd",1,null,null,null,null,null,null,1]
[null,null,null,null,null,null,null,null,null,null,null,null,0]
[null,null,null,null,null,null,null,null,null,null,null,null,0]
[null,null,null,null,null,null,null,null,null,null,null,null,0]
[null,null,null,null,null,null,null,null,null,null,null,null,0]
[null,null,null,null,null,null,null,null,null,null,null,null,0]
["42 - Youth Walk/Jog  (WT - Pattern Class)"]
[null,1845,"Emily Anderson","Macs Mia Bella","1st",2,null,null,null,null,null,null,{"$f":"F464+H464+J464+L464","v":2}]
[null,306,"Scarlette Hucul","The Western Flirt","2nd",1,null,null,null,null,null,null,1]
[null,null,null,null,null,null,null,null,null,null,null,null,0]
[null,null,null,null,null,null,null,null,null,null,null,null,0]
[null,null,null,null,null,null,null,null,null,null,null,null,0]
[null,null,null,null,null,null,null,null,null,null,null,null,0]
[null,null,null,null,null,null,null,null,null,null,null,null,0]
[null,null,null,null,null,null,null,null,null,null,null,null,0]
[null,null,null,null,null,null,null,null,null,null,null,null,0]
["TRAIL DIVISION"]
["43 - In Hand - 2 yr old & under"]
[null,null,null,null,"x",null,null,null,null,null,null,null,{"$f":"F475+H475+J475+L475","v":0}]
[null,null,null,null,"x",null,null,null,null,null,null,null,0]
[null,null,null,null,"x",null,null,null,null,null,null,null,0]
[null,null,null,null,"x",null,null,null,null,null,null,null,0]
[null,null,null,null,"x",null,null,null,null,null,null,null,0]
[null,null,null,null,null,null,null,null,null,null,null,null,0]
[null,null,null,null,null,null,null,null,null,null,null,null,0]
[null,null,null,null,null,null,null,null,null,null,null,null,0]
[null,null,null,null,null,null,null,null,null,null,null,null,0]
[null,null,null,null,null,null,null,null,null,null,null,null,0]
[null,null,null,null,null,null,null,null,null,null,null,null,0]
["44 - In Hand - 3 yr old & over"]
[null,323,"Brooklyn Burke","Bring Mama Flowers","4th",2,null,null,null,null,null,null,{"$f":"F487+H487+J487+L487","v":2}]
[null,330,"Gracie Costello","Lil Jimmy White Socks","2nd",4,null,null,null,null,null,null,4]
[null,285,"Dominique Murray","Whisper","3rd",3,null,null,null,null,null,null,3]
[null,295,"Larry Murray","Cali","5th",1,null,null,null,null,null,null,1]
[null,71,"Corey Wendelken","Mr Big Time Money","1st",5,null,null,null,null,null,null,5]
[null,null,null,null,null,null,null,null,null,null,null,null,0]
[null,null,null,null,null,null,null,null,null,null,null,null,0]
[null,null,null,null,null,null,null,null,null,null,null,null,0]
[null,null,null,null,null,null,null,null,null,null,null,null,0]
[null,null,null,null,null,null,null,null,null,null,null,null,0]
[null,null,null,null,null,null,null,null,null,null,null,null,0]
[null,null,null,null,null,null,null,null,null,null,null,null,0]
[null,null,null,null,null,null,null,null,null,null,null,null,0]
[null,null,null,null,null,null,null,null,null,null,null,null,0]
["45 - Adult Walk/Jog"]
[null,285,"Dominique Murray","Whisper","2nd",1,null,null,null,null,null,null,{"$f":"F502+H502+J502+L502","v":1}]
[null,199,"Ashley Hauver","SE Lets Elope","1st",2,null,null,null,null,null,null,2]
[null,null,null,null,null,null,null,null,null,null,null,null,0]
[null,null,null,null,null,null,null,null,null,null,null,null,0]
[null,null,null,null,null,null,null,null,null,null,null,null,0]
[null,null,null,null,null,null,null,null,null,null,null,null,0]
[null,null,null,null,null,null,null,null,null,null,null,null,0]
[null,null,null,null,null,null,null,null,null,null,null,null,0]
[null,null,null,null,null,null,null,null,null,null,null,null,0]
["46 - Youth Walk/Jog"]
[null,null,null,null,"X",null,null,null,null,null,null,null,{"$f":"F512+H512+J512+L512","v":0}]
[null,null,null,null,"X",null,null,null,null,null,null,null,0]
[null,null,null,null,"X",null,null,null,null,null,null,null,0]
[null,null,null,null,"X",null,null,null,null,null,null,null,0]
[null,null,null,null,"X",null,null,null,null,null,null,null,0]
[null,null,null,null,null,null,null,null,null,null,null,null,0]
[null,null,null,null,null,null,null,null,null,null,null,null,0]
[null,null,null,null,null,null,null,null,null,null,null,null,0]
[null,null,null,null,null,null,null,null,null,null,null,null,0]
[null,null,null,null,null,null,null,null,null,null,null,null,0]
[null,null,null,null,null,null,null,null,null,null,null,null,0]
["47 - Youth 18 yrs & under"]
[null,323,"Brooklyn Burke","Bring Mama Flowers","2nd",3,null,null,null,null,null,null,{"$f":"F524+H524+J524+L524","v":3}]
[null,330,"Gracie Costello","Lil Jimmy White Socks","1st",4,null,null,null,null,null,null,4]
[null,343,"Priscilla Munevar-Pelton","Tally","3rd",2,null,null,null,null,null,null,2]
[null,176,"Ben Scharf","Destined to Dream","4th",1,null,null,null,null,null,null,1]
[null,null,null,null,null,null,null,null,null,null,null,null,0]
[null,null,null,null,null,null,null,null,null,null,null,null,0]
[null,null,null,null,null,null,null,null,null,null,null,null,0]
[null,null,null,null,null,null,null,null,null,null,null,null,0]
[null,null,null,null,null,null,null,null,null,null,null,null,0]
[null,null,null,null,null,null,null,null,null,null,null,null,0]
[null,null,null,null,null,null,null,null,null,null,null,null,0]
[null,null,null,null,null,null,null,null,null,null,null,null,0]
[null,null,null,null,null,null,null,null,null,null,null,null,0]
[null,null,null,null,null,null,null,null,null,null,null,null,0]
[null,null,null,null,null,null,null,null,null,null,null,null,0]
["48 - Adult"]
[null,71,"Corey Wendelken","Mr Big Time Money","1st",3,null,null,null,null,null,null,3]
[null,295,"Larry Murray","Cali","3rd",1,null,null,null,null,null,null,1]
[null,234,"Wendy Stewart","Just for Snickers","2nd",2,null,null,null,null,null,null,2]
[null,null,null,null,null,null,null,null,null,null,null,null,0]
[null,null,null,null,null,null,null,null,null,null,null,null,0]
[null,null,null,null,null,null,null,null,null,null,null,null,0]
[null,null,null,null,null,null,null,null,null,null,null,null,0]
[null,null,null,null,null,null,null,null,null,null,null,null,0]
[null,null,null,null,null,null,null,null,null,null,null,null,0]
[null,null,null,null,null,null,null,null,null,null,null,null,0]
[null,null,null,null,null,null,null,null,null,null,null,null,0]
[null,null,null,null,null,null,null,null,null,null,null,null,0]
["49 - Novice Adult"]
["s",null,null,null,"X",null,null,null,null,null,null,null,0]
[null,null,null,null,"X",null,null,null,null,null,null,null,0]
[null,null,null,null,"X",null,null,null,null,null,null,null,0]
[null,null,null,null,"X",null,null,null,null,null,null,null,0]
[null,null,null,null,"X",null,null,null,null,null,null,null,0]
[null,null,null,null,null,null,null,null,null,null,null,null,0]
[null,null,null,null,null,null,null,null,null,null,null,null,0]
[null,null,null,null,null,null,null,null,null,null,null,null,0]
[null,null,null,null,null,null,null,null,null,null,null,null,0]
[null,null,null,null,null,null,null,null,null,null,null,null,0]
[null,null,null,null,null,null,null,null,null,null,null,null,0]
[null,null,null,null,null,null,null,null,null,null,null,null,0]
[null,null,null,null,null,null,null,null,null,null,null,null,0]

{"sheet":"Hunter-Jumper","index":1,"n_rows":431,"n_cols":14,"rows_kept":431,"cut":false,"hidden":false,"merged":[[388,0,388,12],[351,0,351,12],[369,0,369,12],[253,0,253,12],[352,0,352,12],[274,0,274,12],[297,0,297,12],[320,0,320,12],[321,0,321,12],[0,17,1,17],[0,0,0,11],[408,0,408,12],[200,0,200,12],[235,0,235,12],[1,4,1,11],[218,0,218,12],[116,0,116,12],[3,0,3,12],[4,0,4,12],[77,0,77,12],[199,0,199,12],[41,0,41,12],[115,0,115,12],[158,0,158,12],[159,0,159,12],[127,0,127,12],[141,0,141,12],[170,0,170,12],[182,0,182,12],[252,0,252,12]]}
["Hunter-Jumper Division Show RESULTS 2019",null,null,null,null,null,null,null,null,null,null,null,"TOTAL","\"X\" is not entered"]
[null,null,null,null,"PLACINGS",null,null,null,null,null,null,null,null,"\"srtch\" scratched the class"]
[null,"Exhibitor #","Exhibitor","Horse","2019-06-23","Pts","2019-07-14","Pts","2019-07-28","Pts","2019-08-11","Pts","POINTS","\"E\"  eliminated"]
["HACK DIVISION"]
["1 - Road Hack"]
[null,198,"Meghan Crawford","Express Yourself",null,null,null,null,null,null,null,null,{"$f":"SUM(F6+H6+J6+L6)","v":0}]
[null,289,"Elizabeth Cohen","Julana","1st",5,null,null,null,null,null,null,5]
[null,299,"Ari Lajuenese","Red Rose","4th",2,null,null,null,null,null,null,2]
[null,298,"Sophie Armstrong","Miss Molly",null,null,null,null,null,null,null,null,0]
[null,297,"Remi Minion","Handsome",null,null,null,null,null,null,null,null,0]
[null,290,"Kate Collins","Jack",null,null,null,null,null,null,null,null,0]
[null,286,"Kate Anions","Gus",null,null,null,null,null,null,null,null,0]
[null,151,"Liz Craig","Scottie","2nd",4,null,null,null,null,null,null,4]
[null,null,"Talia Brown","Bambi","srtch",null,null,null,null,null,null,null,0]
[null,341,"Trinity Donovan","Park Place","5th",1,null,null,null,null,null,null,1]
[null,340,"Danika Smith","Heidi",null,null,null,null,null,null,null,null,0]
[null,339,"Grace Purdy","Bugs Bunny",null,null,null,null,null,null,null,null,0]
[null,163,"Marybeth Duncar","Rio's Leika","3rd",3,null,null,null,null,null,null,3]
[null,336,"Illeana Pantalone","Bentley",null,null,null,null,null,null,null,null,0]
[null,null,null,null,null,null,null,null,null,null,null,null,0]
[null,null,null,null,null,null,null,null,null,null,null,null,0]
[null,null,null,null,null,null,null,null,null,null,null,null,0]
[null,null,null,null,null,null,null,null,null,null,null,null,0]
[null,null,null,null,null,null,null,null,null,null,null,null,0]
[null,null,null,null,null,null,null,null,null,null,null,null,0]
[null,null,null,null,null,null,null,null,null,null,null,null,0]
[null,null,null,null,null,null,null,null,null,null,null,null,0]
[null,null,null,null,null,null,null,null,null,null,null,null,0]
[null,null,null,null,null,null,null,null,null,null,null,null,0]
[null,null,null,null,null,null,null,null,null,null,null,null,0]
[null,null,null,null,null,null,null,null,null,null,null,null,0]
[null,null,null,null,null,null,null,null,null,null,null,null,0]
[null,null,null,null,null,null,null,null,null,null,null,null,0]
[null,null,null,null,null,null,null,null,null,null,null,null,0]
[null,null,null,null,null,null,null,null,null,null,null,null,0]
[null,null,null,null,null,null,null,null,null,null,null,null,0]
[null,null,null,null,null,null,null,null,null,null,null,null,0]
[null,null,null,null,null,null,null,null,null,null,null,null,0]
[null,null,null,null,null,null,null,null,null,null,null,null,0]
[null,null,null,null,null,null,null,null,null,null,null,null,0]
[null,null,null,null,null,null,null,null,null,null,null,null,0]
["2 - Show Hack"]
[null,198,"Meghan Crawford","Express Yourself","4th",2,null,null,null,null,null,null,{"$f":"SUM(F43+H43+J43+L43)","v":2}]
[null,289,"Elizabeth Cohen","Julana",null,null,null,null,null,null,null,null,0]
[null,299,"Ari Lajuenese","Red Rose",null,null,null,null,null,null,null,null,0]
[null,298,"Sophie Armstrong","Miss Molly",null,null,null,null,null,null,null,null,0]
[null,297,"Remi Minion","Handsome",null,null,null,null,null,null,null,null,0]
[null,290,"Kate Collins","Jack",null,null,null,null,null,null,null,null,0]
[null,286,"Kate Anions","Gus",null,null,null,null,null,null,null,null,0]
[null,151,"Liz Craig","Scottie","2nd",4,null,null,null,null,null,null,4]
[null,null,"Talia Brown","Bambi","srtch",null,null,null,null,null,null,null,0]
[null,341,"Trinity Donovan","Park Place",null,null,null,null,null,null,null,null,0]
[null,340,"Danika Smith","Heidi","3rd",3,null,null,null,null,null,null,3]
[null,339,"Grace Purdy","Bugs Bunny",null,null,null,null,null,null,null,null,0]
[null,163,"Marybeth Duncar","Rio's Leika","1st",5,null,null,null,null,null,null,5]
[null,336,"Illeana Pantalone","Bentley","5th",1,null,null,null,null,null,null,1]
[null,null,null,null,null,null,null,null,null,null,null,null,0]
[null,null,null,null,null,null,null,null,null,null,null,null,0]
[null,null,null,null,null,null,null,null,null,null,null,null,0]
[null,null,null,null,null,null,null,null,null,null,null,null,0]
[null,null,null,null,null,null,null,null,null,null,null,null,0]
[null,null,null,null,null,null,null,null,null,null,null,null,0]
[null,null,null,null,null,null,null,null,null,null,null,null,0]
[null,null,null,null,null,null,null,null,null,null,null,null,0]
[null,null,null,null,null,null,null,null,null,null,null,null,0]
[null,null,null,null,null,null,null,null,null,null,null,null,0]
[null,null,null,null,null,null,null,null,null,null,null,null,0]
[null,null,null,null,null,null,null,null,null,null,null,null,0]
[null,null,null,null,null,null,null,null,null,null,null,null,0]
[null,null,null,null,null,null,null,null,null,null,null,null,0]
[null,null,null,null,null,null,null,null,null,null,null,null,0]
[null,null,null,null,null,null,null,null,null,null,null,null,0]
[null,null,null,null,null,null,null,null,null,null,null,null,0]
[null,null,null,null,null,null,null,null,null,null,null,null,0]
[null,null,null,null,null,null,null,null,null,null,null,null,0]
[null,null,null,null,null,null,null,null,null,null,null,null,0]
[null,null,null,null,null,null,null,null,null,null,null,null,0]
["3 - Pleasure Hack"]
[null,198,"Meghan Crawford","Express Yourself",null,null,null,null,null,null,null,null,{"$f":"SUM(F79+H79+J79+L79)","v":0}]
[null,289,"Elizabeth Cohen","Julana","2nd",4,null,null,null,null,null,null,4]
[null,299,"Ari Lajuenese","Red Rose","1st",5,null,null,null,null,null,null,5]
[null,298,"Sophie Armstrong","Miss Molly",null,null,null,null,null,null,null,null,0]
[null,297,"Remi Minion","Handsome",null,null,null,null,null,null,null,null,0]
[null,290,"Kate Collins","Jack",null,null,null,null,null,null,null,null,0]
[null,286,"Kate Anions","Gus",null,null,null,null,null,null,null,null,0]
[null,151,"Liz Craig","Scottie","4th",2,null,null,null,null,null,null,2]
[null,null,"Talia Brown","Bambi","srtch",null,null,null,null,null,null,null,0]
[null,341,"Trinity Donovan","Park Place","5th",1,null,null,null,null,null,null,1]
[null,340,"Danika Smith","Heidi",null,null,null,null,null,null,null,null,0]
[null,339,"Grace Purdy","Bugs Bunny",null,null,null,null,null,null,null,null,0]
[null,163,"Marybeth Duncar","Rio's Leika","3rd",3,null,null,null,null,null,null,3]
[null,336,"Illeana Pantalone","Bentley",null,null,null,null,null,null,null,null,0]
[null,null,null,null,null,null,null,null,null,null,null,null,0]
[null,null,null,null,null,null,null,null,null,null,null,null,0]
[null,null,null,null,null,null,null,null,null,null,null,null,0]
[null,null,null,null,null,null,null,null,null,null,null,null,0]
[null,null,null,null,null,null,null,null,null,null,null,null,0]
[null,null,null,null,null,null,null,null,null,null,null,null,0]
[null,null,null,null,null,null,null,null,null,null,null,null,0]
[null,null,null,null,null,null,null,null,null,null,null,null,0]
[null,null,null,null,null,null,null,null,null,null,null,null,0]
[null,null,null,null,null,null,null,null,null,null,null,null,0]
[null,null,null,null,null,null,null,null,null,null,null,null,0]
[null,null,null,null,null,null,null,null,null,null,null,null,0]
[null,null,null,null,null,null,null,null,null,null,null,null,0]
[null,null,null,null,null,null,null,null,null,null,null,null,0]
[null,null,null,null,null,null,null,null,null,null,null,null,0]
[null,null,null,null,null,null,null,null,null,null,null,null,0]
[null,null,null,null,null,null,null,null,null,null,null,null,0]
[null,null,null,null,null,null,null,null,null,null,null,null,0]
[null,null,null,null,null,null,null,null,null,null,null,null,0]
[null,null,null,null,null,null,null,null,null,null,null,null,0]
[null,null,null,null,null,null,null,null,null,null,null,null,0]
[null,null,null,null,null,null,null,null,null,null,null,null,0]
[null,null,null,null,null,null,null,null,null,null,null,null,0]
["WALK / TROT DIVISION - Open to Rider ALL Ages  (limited to this class only)"]
["4 - W/T Under Saddle  "]
[null,296,"Sola McMullen","Lady Gypsy in Gold","5th",1,null,null,null,null,null,null,{"$f":"SUM(F118+H118+J118+L118)","v":1}]
[null,196,"Brook Vanance","Gorgeous","2nd",4,null,null,null,null,null,null,4]
[null,195,"Piper Streeter","Relaxin Jackson","4th",2,null,null,null,null,null,null,2]
[null,335,"Mattea Pantelone","Hollywood","3rd",3,null,null,null,null,null,null,3]
[null,332,"Sophie Emberson","Abby","1st",5,null,null,null,null,null,null,5]
[null,null,null,null,null,null,null,null,null,null,null,null,0]
[null,null,null,null,null,null,null,null,null,null,null,null,0]
[null,null,null,null,null,null,null,null,null,null,null,null,0]
[null,null,null,null,null,null,null,null,null,null,null,null,0]
[null,null,null,null,null,null,null,null,null,null,null,null,0]
["5 - W/T Command  "]
[null,296,"Sola McMullen","Lady Gypsy in Gold","3rd",3,null,null,null,null,null,null,3]
[null,196,"Brook Vanance","Gorgeous","1st",5,null,null,null,null,null,null,5]
[null,195,"Piper Streeter","Relaxin Jackson","4th",2,null,null,null,null,null,null,2]
[null,335,"Mattea Pantelone","Hollywood","5th",1,null,null,null,null,null,null,1]
[null,332,"Sophie Emberson","Abby","2nd",4,null,null,null,null,null,null,4]
[null,null,null,null,null,null,null,null,null,null,null,null,0]
[null,null,null,null,null,null,null,null,null,null,null,null,0]
[null,null,null,null,null,null,null,null,null,null,null,null,0]
[null,null,null,null,null,null,null,null,null,null,null,null,0]
[null,null,null,null,null,null,null,null,null,null,null,null,0]
[null,null,null,null,null,null,null,null,null,null,null,null,0]
[null,null,null,null,null,null,null,null,null,null,null,null,0]
[null,null,null,null,null,null,null,null,null,null,null,null,0]
["6 - W/T Poles  "]
[null,296,"Sola McMullen","Lady Gypsy in Gold","3rd",3,null,null,null,null,null,null,3]
[null,196,"Brook Vanance","Gorgeous","1st",5,null,null,null,null,null,null,5]
[null,195,"Piper Streeter","Relaxin Jackson","2nd",4,null,null,null,null,null,null,4]
[null,335,"Mattea Pantelone","Hollywood","5th",1,null,null,null,null,null,null,1]
[null,332,"Sophie Emberson","Abby","4th",2,null,null,null,null,null,null,2]
[null,null,null,null,null,null,null,null,null,null,null,null,0]
[null,null,null,null,null,null,null,null,null,null,null,null,0]
[null,null,null,null,null,null,null,null,null,null,null,null,0]
[null,null,null,null,null,null,null,null,null,null,null,null,0]
[null,null,null,null,null,null,null,null,null,null,null,null,0]
[null,null,null,null,null,null,null,null,null,null,null,null,0]
[null,null,null,null,null,null,null,null,null,null,null,null,0]
[null,null,null,null,null,null,null,null,null,null,null,null,0]
[null,null,null,null,null,null,null,null,null,null,null,null,0]
[null,null,null,null,null,null,null,null,null,null,null,null,0]
[null,null,null,null,null,null,null,null,null,null,null,null,0]
["CROSS RAILS DIVISION - Open to Rider ALL Ages (limited to this division only)"]
["7 - Cross Rails - Over Fences"]
[null,291,"Isabelle Joly","Lady Gypsy in Gold","E",null,null,null,null,null,null,null,{"$f":"SUM(F161+H161+J161+L161)","v":0}]
[null,299,"Ari Lajenuese","Red Rose","3rd",1,null,null,null,null,null,null,1]
[null,344,"Arielle McEwen","Tikka","2nd",2,null,null,null,null,null,null,2]
[null,335,"Mattea Pantelone","Hollywood","srtch",null,null,null,null,null,null,null,0]
[null,336,"Illeana Pantalone","Bentley","1st",3,null,null,null,null,null,null,3]
[null,null,null,null,null,null,null,null,null,null,null,null,0]
[null,null,null,null,null,null,null,null,null,null,null,null,0]
[null,null,null,null,null,null,null,null,null,null,null,null,0]
[null,null,null,null,null,null,null,null,null,null,null,null,0]
[null,null,null,null,null,null,null,null,null,null,null,null,0]
["8 - Cross Rails - Over Fences"]
[null,291,"Isabelle Joly","Lady Gypsy in Gold","4th",1,null,null,null,null,null,null,1]
[null,299,"Ari Lajenuese","Red Rose","1st",4,null,null,null,null,null,null,4]
[null,344,"Arielle McEwen","Tikka","2nd",3,null,null,null,null,null,null,3]
[null,335,"Mattea Pantelone","Hollywood","srtch",null,null,null,null,null,null,null,0]
[null,336,"Illeana Pantalone","Bentley","3rd",2,null,null,null,null,null,null,2]
[null,null,null,null,null,null,null,null,null,null,null,null,0]
[null,null,null,null,null,null,null,null,null,null,null,null,0]
[null,null,null,null,null,null,null,null,null,null,null,null,0]
[null,null,null,null,null,null,null,null,null,null,null,null,0]
[null,null,null,null,null,null,null,null,null,null,null,null,0]
[null,null,null,null,null,null,null,null,null,null,null,null,0]
["9 - Cross Rails - Under Saddle"]
[null,291,"Isabelle Joly","Lady Gypsy in Gold","3rd",3,null,null,null,null,null,null,3]
[null,299,"Ari Lajenuese","Red Rose","2nd",4,null,null,null,null,null,null,4]
[null,290,"Kate Collins","Jack","4th",2,null,null,null,null,null,null,2]
[null,344,"Arielle McEwen","Tikka","5th",1,null,null,null,null,null,null,1]
[null,335,"Mattea Pantelone","Hollywood","srtch",null,null,null,null,null,null,null,0]
[null,336,"Illeana Pantalone","Bentley","1st",5,null,null,null,null,null,null,{"$f":"SUM(F189+H189+J189+L189)","v":5}]
[null,null,null,null,null,null,null,null,null,null,null,null,0]
[null,null,null,null,null,null,null,null,null,null,null,null,0]
[null,null,null,null,null,null,null,null,null,null,null,null,0]
[null,null,null,null,null,null,null,null,null,null,null,null,0]
[null,null,null,null,null,null,null,null,null,null,null,null,0]
[null,null,null,null,null,null,null,null,null,null,null,null,0]
[null,null,null,null,null,null,null,null,null,null,null,null,0]
[null,null,null,null,null,null,null,null,null,null,null,null,0]
[null,null,null,null,null,null,null,null,null,null,null,null,0]
[null,null,null,null,null,null,null,null,null,null,null,null,0]
["PONY HUNTER DIVISION "]
["10 - Pony Hunter  Over Fences"]
[null,198,"Megan Crawford","Express Yourself","1st",3,null,null,null,null,null,null,{"$f":"SUM(F202+H202+J202+L202)","v":3}]
[null,197,"Jullian Malanka","Mellow Yellow","2nd",2,null,null,null,null,null,null,2]
[null,340,"Danika Smith","Heidi","srtch",null,null,null,null,null,null,null,0]
[null,338,"Sarah Kuzniarz","Bentley","3rd",1,null,null,null,null,null,null,1]
[null,337,"Nora Lacroix","Hollywood","srtch",null,null,null,null,null,null,null,0]
[null,null,null,null,null,null,null,null,null,null,null,null,0]
[null,null,null,null,null,null,null,null,null,null,null,null,0]
[null,null,null,null,null,null,null,null,null,null,null,null,0]
[null,null,null,null,null,null,null,null,null,null,null,null,0]
[null,null,null,null,null,null,null,null,null,null,null,null,0]
[null,null,null,null,null,null,null,null,null,null,null,null,0]
[null,null,null,null,null,null,null,null,null,null,null,null,0]
[null,null,null,null,null,null,null,null,null,null,null,null,0]
[null,null,null,null,null,null,null,null,null,null,null,null,0]
[null,null,null,null,null,null,null,null,null,null,null,null,0]
[null,null,null,null,null,null,null,null,null,null,null,null,0]
[null,null,null,null,null,null,null,null,null,null,null,null,0]
["11 - Pony Hunter Over Fences"]
[null,198,"Megan Crawford","Express Yourself","2nd",2,null,null,null,null,null,null,{"$f":"SUM(F220+H220+J220+L220)","v":2}]
[null,197,"Jullian Malanka","Mellow Yellow","3rd",1,null,null,null,null,null,null,1]
[null,340,"Danika Smith","Heidi","srtch",null,null,null,null,null,null,null,0]
[null,338,"Sarah Kuzniarz","Bentley","1st",3,null,null,null,null,null,null,3]
[null,337,"Nora Lacroix","Hollywood","srtch",null,null,null,null,null,null,null,0]
[null,null,null,null,null,null,null,null,null,null,null,null,0]
[null,null,null,null,null,null,null,null,null,null,null,null,0]
[null,null,null,null,null,null,null,null,null,null,null,null,0]
[null,null,null,null,null,null,null,null,null,null,null,null,0]
[null,null,null,null,null,null,null,null,null,null,null,null,0]
[null,null,null,null,null,null,null,null,null,null,null,null,0]
[null,null,null,null,null,null,null,null,null,null,null,null,0]
[null,null,null,null,null,null,null,null,null,null,null,null,0]
[null,null,null,null,null,null,null,null,null,null,null,null,0]
[null,null,null,null,null,null,null,null,null,null,null,null,0]
[null,null,null,null,null,null,null,null,null,null,null,null,0]
["12 - Pony Hunter Under Saddle"]
[null,198,"Megan Crawford","Express Yourself","2nd",2,null,null,null,null,null,null,{"$f":"SUM(F237+H237+J237+L237)","v":2}]
[null,197,"Jullian Malanka","Mellow Yellow","3rd",1,null,null,null,null,null,null,1]
[null,340,"Danika Smith","Heidi","srtch",null,null,null,null,null,null,null,0]
[null,338,"Sarah Kuzniarz","Bentley","1st",3,null,null,null,null,null,null,3]
[null,337,"Nora Lacroix","Hollywood","srtch",null,null,null,null,null,null,null,0]
[null,null,null,null,null,null,null,null,null,null,null,null,0]
[null,null,null,null,null,null,null,null,null,null,null,null,0]
[null,null,null,null,null,null,null,null,null,null,null,null,0]
[null,null,null,null,null,null,null,null,null,null,null,null,0]
[null,null,null,null,null,null,null,null,null,null,null,null,0]
[null,null,null,null,null,null,null,null,null,null,null,null,0]
[null,null,null,null,null,null,null,null,null,null,null,null,0]
[null,null,null,null,null,null,null,null,null,null,null,null,0]
[null,null,null,null,null,null,null,null,null,null,null,null,0]
[null,null,null,null,null,null,null,null,null,null,null,null,0]
[null,null,null,null,null,null,null,null,null,null,null,null,0]
["OPEN HUNTER DIVISION "]
["13 - Open Hunter Over Fences"]
[null,298,"Sophie Levi","Miss Molly",null,null,null,null,null,null,null,null,{"$f":"SUM(F255+H255+J255+L255)","v":0}]
[null,297,"Remi Minion","Handsome",null,null,null,null,null,null,null,null,0]
[null,null,"Kate Anions","Gus","srtch",null,null,null,null,null,null,null,0]
[null,292,"Ashley Todd","Daisy",null,null,null,null,null,null,null,null,0]
[null,289,"Elizabeth Cohen","Julana","1st",5,null,null,null,null,null,null,5]
[null,288,"Sarah Bartlett","Lady Gypsy in Gold",null,null,null,null,null,null,null,null,0]
[null,287,"Jessica Bartlett","Scout",null,null,null,null,null,null,null,null,0]
[null,151,"Liz Craig","Scottie","srtch",null,null,null,null,null,null,null,0]
[null,346,"Cassandra Carpenter","Rio Got Played","4th",2,null,null,null,null,null,null,2]
[null,null,"Talia Brown","Bambi","srtch",null,null,null,null,null,null,null,0]
[null,341,"Trinity Donovan","Park place","2nd",4,null,null,null,null,null,null,4]
[null,339,"Gracie Purdy","Bugs bunny",null,null,null,null,null,null,null,null,0]
[null,334,"Brittany Fex","WRITTEN IN CHOCOLATE","5th",1,null,null,null,null,null,null,1]
[null,328,"Breanna Lyons","Buckshot",null,null,null,null,null,null,null,null,0]
[null,211,"Allie Argue","Concert",null,null,null,null,null,null,null,null,0]
[null,340,"Danika Smith","Heidi","3rd",3,null,null,null,null,null,null,3]
[null,null,null,null,null,null,null,null,null,null,null,null,0]
[null,null,null,null,null,null,null,null,null,null,null,null,0]
[null,null,null,null,null,null,null,null,null,null,null,null,0]
[null,null,null,null,null,null,null,null,null,null,null,null,0]
["14 - Open Hunter Over Fences"]
[null,298,"Sophie Levi","Miss Molly",null,null,null,null,null,null,null,null,0]
[null,297,"Remi Minion","Handsome",null,null,null,null,null,null,null,null,0]
[null,null,"Kate Anions","Gus","srtch",null,null,null,null,null,null,null,0]
[null,292,"Ashley Todd","Daisy",null,null,null,null,null,null,null,null,0]
[null,289,"Elizabeth Cohen","Julana","1st",5,null,null,null,null,null,null,5]
[null,288,"Sarah Bartlett","Lady Gypsy in Gold",null,null,null,null,null,null,null,null,0]
[null,287,"Jessica Bartlett","Scout",null,null,null,null,null,null,null,null,0]
[null,151,"Liz Craig","Scottie","srtch",null,null,null,null,null,null,null,0]
[null,346,"Cassandra Carpenter","Rio Got Played",null,null,null,null,null,null,null,null,0]
[null,null,"Talia Brown","Bambi","srtch",null,null,null,null,null,null,null,0]
[null,341,"Trinity Donovan","Park place","3rd",3,null,null,null,null,null,null,3]
[null,339,"Gracie Purdy","Bugs bunny","2nd",4,null,null,null,null,null,null,4]
[null,334,"Brittany Fex","WRITTEN IN CHOCOLATE","5th",1,null,null,null,null,null,null,1]
[null,328,"Breanna Lyons","Buckshot",null,null,null,null,null,null,null,null,0]
[null,211,"Allie Argue","Concert",null,null,null,null,null,null,null,null,0]
[null,340,"Danika Smith","Heidi","4th",2,null,null,null,null,null,null,2]
[null,null,null,null,null,null,null,null,null,null,null,null,0]
[null,null,null,null,null,null,null,null,null,null,null,null,0]
[null,null,null,null,null,null,null,null,null,null,null,null,0]
[null,null,null,null,null,null,null,null,null,null,null,null,0]
[null,null,null,null,null,null,null,null,null,null,null,null,0]
[null,null,null,null,null,null,null,null,null,null,null,null,0]
["15 - Open Hunter Under Saddle"]
[null,298,"Sophie Levi","Miss Molly",null,null,null,null,null,null,null,null,0]
[null,297,"Remi Minion","Handsome",null,null,null,null,null,null,null,null,0]
[null,null,"Kate Anions","Gus","srtch",null,null,null,null,null,null,null,0]
[null,292,"Ashley Todd","Daisy",null,null,null,null,null,null,null,null,0]
[null,289,"Elizabeth Cohen","Julana","1st",5,null,null,null,null,null,null,5]
[null,288,"Sarah Bartlett","Lady Gypsy in Gold",null,null,null,null,null,null,null,null,0]
[null,287,"Jessica Bartlett","Scout",null,null,null,null,null,null,null,null,0]
[null,151,"Liz Craig","Scottie",null,null,null,null,null,null,null,null,0]
[null,346,"Cassandra Carpenter","Rio Got Played",null,null,null,null,null,null,null,null,0]
[null,null,"Talia Brown","Bambi","srtch",null,null,null,null,null,null,null,0]
[null,341,"Trinity Donovan","Park place","3rd",3,null,null,null,null,null,null,3]
[null,339,"Gracie Purdy","Bugs bunny","5th",1,null,null,null,null,null,null,1]
[null,334,"Brittany Fex","WRITTEN IN CHOCOLATE","2nd",4,null,null,null,null,null,null,4]
[null,328,"Breanna Lyons","Buckshot",null,null,null,null,null,null,null,null,0]
[null,211,"Allie Argue","Concert",null,null,null,null,null,null,null,null,0]
[null,340,"Danika Smith","Heidi","4th",2,null,null,null,null,null,null,2]
[null,null,null,null,null,null,null,null,null,null,null,null,0]
[null,null,null,null,null,null,null,null,null,null,null,null,0]
[null,null,null,null,null,null,null,null,null,null,null,null,0]
[null,null,null,null,null,null,null,null,null,null,null,null,0]
[null,null,null,null,null,null,null,null,null,null,null,null,0]
[null,null,null,null,null,null,null,null,null,null,null,null,0]
["OPEN EQUITATION  (Rider Only Judged)(Can have a different horse each day only for this division)"]
["16 - Open Equitation Medal - Over Fences"]
[null,198,"Megan Crawford","Express Yourself","srtch",null,null,null,null,null,null,null,0]
[null,299,"Ari Lajenuese","Red Rose","srtch",null,null,null,null,null,null,null,0]
[null,298,"Sophie Levi","Miss Molly","srtch",null,null,null,null,null,null,null,0]
[null,297,"Remi Minion","Handsome","srtch",null,null,null,null,null,null,null,0]
[null,292,"Ashley Todd","Daisy",null,null,null,null,null,null,null,null,0]
[null,289,"Elizabeth Cohen","Julana","2nd",4,null,null,null,null,null,null,4]
[null,288,"Sarah Bartlett","Lady Gypsy in Gold",null,null,null,null,null,null,null,null,0]
[null,287,"Jessica Bartlett","Scout",null,null,null,null,null,null,null,null,0]
[null,341,"Trinity Donovan","Park place","3rd",3,null,null,null,null,null,null,3]
[null,340,"Danika Smith","Heidi","1st",5,null,null,null,null,null,null,5]
[null,339,"Gracie Purdy","Bugs Bunny","4th",2,null,null,null,null,null,null,2]
[null,334,"Brittany Fex","WRITTEN IN CHOCOLATE","srtch",null,null,null,null,null,null,null,0]
[null,328,"Breanna Lyons","Buckshot","5th",1,null,null,null,null,null,null,1]
[null,197,"Jullian Malanka","Mellow Yellow",null,null,null,null,null,null,null,null,0]
[null,null,null,null,null,null,null,null,null,null,null,null,0]
[null,null,null,null,null,null,null,null,null,null,null,null,0]
[null,null,null,null,null,null,null,null,null,null,null,null,0]
[null,null,null,null,null,null,null,null,null,null,null,null,0]
[null,null,null,null,null,null,null,null,null,null,null,null,0]
[null,null,null,null,null,null,null,null,null,null,null,null,0]
[null,null,null,null,null,null,null,null,null,null,null,null,0]
[null,null,null,null,null,null,null,null,null,null,null,null,0]
[null,null,null,null,null,null,null,null,null,null,null,null,0]
[null,null,null,null,null,null,null,null,null,null,null,null,0]
[null,null,null,null,null,null,null,null,null,null,null,null,0]
[null,null,null,null,null,null,null,null,null,null,null,null,0]
[null,null,null,null,null,null,null,null,null,null,null,null,0]
[null,null,null,null,null,null,null,null,null,null,null,null,0]
[null,null,null,null,null,null,null,null,null,null,null,null,0]
["JUMPER DIVISION"]
["17 - 18\" Speed Round"]
[null,293,"Vishnu Vardhan","Gus","2nd",4,null,null,null,null,null,null,{"$f":"SUM(F354+H354+J354+L354)","v":4}]
[null,292,"Ashley Todd","Daisy","E",null,null,null,null,null,null,null,0]
[null,289,"Elizabeth Cohen","Julana","srtch",null,null,null,null,null,null,null,0]
[null,288,"Sarah Bartlett","Lady Gypsy in Gold","srtch",null,null,null,null,null,null,null,0]
[null,287,"Jessica Bartlett","Scout","1st",5,null,null,null,null,null,null,5]
[null,340,"Danika Smith","Heidi","4th",2,null,null,null,null,null,null,2]
[null,341,"Trinity Donovan","Park place","3rd",3,null,null,null,null,null,null,3]
[null,null,null,null,null,null,null,null,null,null,null,null,0]
[null,null,null,null,null,null,null,null,null,null,null,null,0]
[null,null,null,null,null,null,null,null,null,null,null,null,0]
[null,null,null,null,null,null,null,null,null,null,null,null,0]
[null,null,null,null,null,null,null,null,null,null,null,null,0]
[null,null,null,null,null,null,null,null,null,null,null,null,0]
[null,null,null,null,null,null,null,null,null,null,null,null,0]
[null,null,null,null,null,null,null,null,null,null,null,null,0]
[null,null,null,null,null,null,null,null,null,null,null,null,0]
["18 - 2' Clear Round with Jump Off"]
[null,293,"Vishnu Vardhan","Gus","E",null,null,null,null,null,null,null,{"$f":"SUM(F371+H371+J371+L371)","v":0}]
[null,292,"Ashley Todd","Daisy","1st",5,null,null,null,null,null,null,5]
[null,289,"Elizabeth Cohen","Julana","srtch",null,null,null,null,null,null,null,0]
[null,288,"Sarah Bartlett","Lady Gypsy in Gold","srtch",null,null,null,null,null,null,null,0]
[null,287,"Jessica Bartlett","Scout","4th",2,null,null,null,null,null,null,2]
[null,340,"Danika Smith","Heidi","2nd",4,null,null,null,null,null,null,4]
[null,341,"Trinity Donovan","Park place","3rd",3,null,null,null,null,null,null,3]
[null,null,null,null,null,null,null,null,null,null,null,null,0]
[null,null,null,null,null,null,null,null,null,null,null,null,0]
[null,null,null,null,null,null,null,null,null,null,null,null,0]
[null,null,null,null,null,null,null,null,null,null,null,null,0]
[null,null,null,null,null,null,null,null,null,null,null,null,0]
[null,null,null,null,null,null,null,null,null,null,null,null,0]
[null,null,null,null,null,null,null,null,null,null,null,null,0]
[null,null,null,null,null,null,null,null,null,null,null,null,0]
[null,null,null,null,null,null,null,null,null,null,null,null,0]
[null,null,null,null,null,null,null,null,null,null,null,null,0]
[null,null,null,null,null,null,null,null,null,null,null,null,0]
["19 - 2'3\" Speed Round"]
[null,293,"Vishnu Vardhan","Gus","4th",1,null,null,null,null,null,null,{"$f":"SUM(F390+H390+J390+L390)","v":1}]
[null,292,"Ashley Todd","Daisy","3rd",2,null,null,null,null,null,null,2]
[null,289,"Elizabeth Cohen","Julana","srtch",null,null,null,null,null,null,null,0]
[null,288,"Sarah Bartlett","Lady Gypsy in Gold","srtch",null,null,null,null,null,null,null,0]
[null,287,"Jessica Bartlett","Scout","srtch",null,null,null,null,null,null,null,0]
[null,340,"Danika Smith","Heidi","1st",4,null,null,null,null,null,null,4]
[null,341,"Trinity Donovan","Park place","2nd",3,null,null,null,null,null,null,3]
[null,null,null,null,null,null,null,null,null,null,null,null,0]
[null,null,null,null,null,null,null,null,null,null,null,null,0]
[null,null,null,null,null,null,null,null,null,null,null,null,0]
[null,null,null,null,null,null,null,null,null,null,null,null,0]
[null,null,null,null,null,null,null,null,null,null,null,null,0]
[null,null,null,null,null,null,null,null,null,null,null,null,0]
[null,null,null,null,null,null,null,null,null,null,null,null,0]
[null,null,null,null,null,null,null,null,null,null,null,null,0]
[null,null,null,null,null,null,null,null,null,null,null,null,0]
[null,null,null,null,null,null,null,null,null,null,null,null,{"$f":"SUM(F406+H406+J406+L406)","v":0}]
[null,null,null,null,null,null,null,null,null,null,null,null,0]
[null,null,null,null,null,null,null,null,null,null,null,null,0]
["DHRC HUNTER DERBY  (No points) (Cash Payout at 4th show)"]
[null,293,"Vishnu Vardhan","Gus","E",null,null,null,null,null,null,null,{"$f":"SUM(F410+H410+J410+L410)","v":0}]
[null,292,"Ashley Todd","Daisy","E",null,null,null,null,null,null,null,0]
[null,289,"Elizabeth Cohen","Julana","1st",5,null,null,null,null,null,null,5]
[null,288,"Sarah Bartlett","Lady Gypsy in Gold","2nd",4,null,null,null,null,null,null,4]
[null,334,"Brittany Fex","WRITTEN IN CHOCOLATE","srtch",null,null,null,null,null,null,null,0]
[null,328,"Breanna Lyons","Buckshot","E",null,null,null,null,null,null,null,{"$f":"SUM(F415+H415+J415+L415)","v":0}]
[null,287,"Jessica Bartlett","Scout","3rd",3,null,null,null,null,null,null,3]
[null,341,"Trinity Donovan","Park place","E",null,null,null,null,null,null,null,{"$f":"SUM(F417+H417+J417+L417)","v":0}]
[null,null,null,null,null,null,null,null,null,null,null,null,0]
[null,null,null,null,null,null,null,null,null,null,null,null,0]
[null,null,null,null,null,null,null,null,null,null,null,null,0]
[null,null,null,null,null,null,null,null,null,null,null,null,0]
[null,null,null,null,null,null,null,null,null,null,null,null,{"$f":"SUM(F422+H422+J422+L422)","v":0}]
[null,null,null,null,null,null,null,null,null,null,null,null,{"$f":"SUM(F423+H423+J423+L423)","v":0}]
[null,null,null,null,null,null,null,null,null,null,null,null,0]
[null,null,null,null,null,null,null,null,null,null,null,null,0]
[null,null,null,null,null,null,null,null,null,null,null,null,0]
[null,null,null,null,null,null,null,null,null,null,null,null,0]
[null,null,null,null,null,null,null,null,null,null,null,null,0]
[null,null,null,null,null,null,null,null,null,null,null,null,0]
[null,null,null,null,null,null,null,null,null,null,null,null,0]
[null,null,null,null,null,null,null,null,null,null,null,null,0]

{"sheet":"Western Games","index":2,"n_rows":165,"n_cols":16,"rows_kept":165,"cut":false,"hidden":false,"merged":[[105,0,105,12],[122,0,122,12],[123,0,123,12],[138,0,138,12],[32,0,32,12],[47,0,47,12],[64,0,64,12],[89,0,89,12],[90,0,90,12],[137,13,137,14],[89,13,89,14],[123,13,123,14],[90,13,90,14],[105,13,105,14],[122,13,122,14],[46,13,46,14],[32,13,32,14],[19,13,19,14],[64,13,64,14],[47,13,47,14],[19,0,19,12],[0,4,0,11],[2,13,2,14],[3,13,3,14],[2,0,2,12],[3,0,3,12]]}
[null,null,null,null,"PLACINGS",null,null,null,null,null,null,null,"TOTAL ",null,null,"\"X\" is not entered"]
[null,"Exhibitor#","EXHIBITOR","HORSE","2019-06-23","pts","2019-07-14","pts","2019-07-28","pts","2019-08-11","pts","POINTS","Champion","Reserve","\"srtch\" scratched the class"]
["COWBOY OBSTACLE RACE",null,null,null,null,null,null,null,null,null,null,null,null,null,null,"\"DQ\"  disqualified"]
["50 - Novice Adult"]
[null,17,"Lindsay Wiggins","Mr Big Time Money","1st",1,null,null,null,null,null,null,{"$f":"F5+H5+J5+L5","v":1}]
[null,null,null,null,null,null,null,null,null,null,null,null,{"$f":"F6+H6+J6+L6","v":0}]
[null,null,null,null,null,null,null,null,null,null,null,null,{"$f":"F7+H7+J7+L7","v":0}]
[null,null,null,null,null,null,null,null,null,null,null,null,{"$f":"F8+H8+J8+L8","v":0}]
[null,null,null,null,null,null,null,null,null,null,null,null,{"$f":"F9+H9+J9+L9","v":0}]
[null,null,null,null,null,null,null,null,null,null,null,null,{"$f":"F10+H10+J10+L10","v":0}]
[null,null,null,null,null,null,null,null,null,null,null,null,0]
[null,null,null,null,null,null,null,null,null,null,null,null,0]
[null,null,null,null,null,null,null,null,null,null,null,null,0]
[null,null,null,null,null,null,null,null,null,null,null,null,0]
[null,null,null,null,null,null,null,null,null,null,null,null,0]
[null,null,null,null,null,null,null,null,null,null,null,null,0]
[null,null,null,null,null,null,null,null,null,null,null,null,0]
[null,null,null,null,null,null,null,null,null,null,null,null,{"$f":"F18+H18+J18+L18","v":0}]
[null,null,null,null,null,null,null,null,null,null,null,null,{"$f":"F19+H19+J19+L19","v":0}]
["51 - Youth"]
[null,null,null,null,"X",null,null,null,null,null,null,null,{"$f":"F21+H21+J21+L21","v":0}]
[null,null,null,null,"X",null,null,null,null,null,null,null,{"$f":"F22+H22+J22+L22","v":0}]
[null,null,null,null,"X",null,null,null,null,null,null,null,{"$f":"F23+H23+J23+L23","v":0}]
[null,null,null,null,"X",null,null,null,null,null,null,null,{"$f":"F24+H24+J24+L24","v":0}]
[null,null,null,null,"X",null,null,null,null,null,null,null,{"$f":"F25+H25+J25+L25","v":0}]
[null,null,null,null,null,null,null,null,null,null,null,null,0]
[null,null,null,null,null,null,null,null,null,null,null,null,0]
[null,null,null,null,null,null,null,null,null,null,null,null,0]
[null,null,null,null,null,null,null,null,null,null,null,null,0]
[null,null,null,null,null,null,null,null,null,null,null,null,0]
[null,null,null,null,null,null,null,null,null,null,null,null,0]
[null,null,null,null,null,null,null,null,null,null,null,null,0]
["52 - Open Adult"]
[null,71,"Cory Wendelken","Mr Big Time Money","1st",1,null,null,null,null,null,null,{"$f":"F34+H34+J34+L34","v":1}]
[null,null,null,null,null,null,null,null,null,null,null,null,{"$f":"F35+H35+J35+L35","v":0}]
[null,null,null,null,null,null,null,null,null,null,null,null,{"$f":"F36+H36+J36+L36","v":0}]
[null,null,null,null,null,null,null,null,null,null,null,null,{"$f":"F37+H37+J37+L37","v":0}]
[null,null,null,null,null,null,null,null,null,null,null,null,{"$f":"F38+H38+J38+L38","v":0}]
[null,null,null,null,null,null,null,null,null,null,null,null,0]
[null,null,null,null,null,null,null,null,null,null,null,null,0]
[null,null,null,null,null,null,null,null,null,null,null,null,0]
[null,null,null,null,null,null,null,null,null,null,null,null,0]
[null,null,null,null,null,null,null,null,null,null,null,null,0]
[null,null,null,null,null,null,null,null,null,null,null,null,{"$f":"F44+H44+J44+L44","v":0}]
[null,null,null,null,null,null,null,null,null,null,null,null,{"$f":"F45+H45+J45+L45","v":0}]
[null,null,null,null,null,null,null,null,null,null,null,null,{"$f":"F46+H46+J46+L46","v":0}]
["BARREL DIVISION"]
["53 - Youth"]
[null,325,"Brooklyn Burke","Gimme Some Treasure","1st",3,null,null,null,null,null,null,{"$f":"F49+H49+J49+L49","v":3}]
[null,343,"Priscilla Munevar-Pelton","Tally","3rd",1,null,null,null,null,null,null,{"$f":"F50+H50+J50+L50","v":1}]
[null,347,"Leah Prosper","Topper","2nd",2,null,null,null,null,null,null,{"$f":"F51+H51+J51+L51","v":2}]
[null,null,null,null,null,null,null,null,null,null,null,null,{"$f":"F52+H52+J52+L52","v":0}]
[null,null,null,null,null,null,null,null,null,null,null,null,{"$f":"F53+H53+J53+L53","v":0}]
[null,null,null,null,null,null,null,null,null,null,null,null,0]
[null,null,null,null,null,null,null,null,null,null,null,null,0]
[null,null,null,null,null,null,null,null,null,null,null,null,0]
[null,null,null,null,null,null,null,null,null,null,null,null,0]
[null,null,null,null,null,null,null,null,null,null,null,null,0]
[null,null,null,null,null,null,null,null,null,null,null,null,0]
[null,null,null,null,null,null,null,null,null,null,null,null,0]
[null,null,null,null,null,null,null,null,null,null,null,null,0]
[null,null,null,null,null,null,null,null,null,null,null,null,{"$f":"F62+H62+J62+L62","v":0}]
[null,null,null,null,null,null,null,null,null,null,null,null,{"$f":"F63+H63+J63+L63","v":0}]
[null,null,null,null,null,null,null,null,null,null,null,null,{"$f":"F64+H64+J64+L64","v":0}]
["54 - Adult"]
[null,94,"Robyn Argue","Eyes in Overdrive","1st",4,null,null,null,null,null,null,{"$f":"F66+H66+J66+L66","v":4}]
[null,345,"Donna Livingston","Juice","4th",1,null,null,null,null,null,null,{"$f":"F67+H67+J67+L67","v":1}]
[null,129,"Melissa Leduc","Liberty","3rd",2,null,null,null,null,null,null,{"$f":"F68+H68+J68+L68","v":2}]
[null,128,"Renee Armstrong","Jista Prince Robin","2nd",3,null,null,null,null,null,null,{"$f":"F69+H69+J69+L69","v":3}]
[null,null,null,null,null,null,null,null,null,null,null,null,0]
[null,null,null,null,null,null,null,null,null,null,null,null,0]
[null,null,null,null,null,null,null,null,null,null,null,null,0]
[null,null,null,null,null,null,null,null,null,null,null,null,0]
[null,null,null,null,null,null,null,null,null,null,null,null,0]
[null,null,null,null,null,null,null,null,null,null,null,null,0]
[null,null,null,null,null,null,null,null,null,null,null,null,0]
[null,null,null,null,null,null,null,null,null,null,null,null,0]
[null,null,null,null,null,null,null,null,null,null,null,null,{"$f":"F78+H78+J78+L78","v":0}]
[null,null,null,null,null,null,null,null,null,null,null,null,{"$f":"F79+H79+J79+L79","v":0}]
[null,null,null,null,null,null,null,null,null,null,null,null,{"$f":"F80+H80+J80+L80","v":0}]
[null,null,null,null,null,null,null,null,null,null,null,null,{"$f":"F81+H81+J81+L81","v":0}]
[null,null,null,null,null,null,null,null,null,null,null,null,0]
[null,null,null,null,null,null,null,null,null,null,null,null,0]
[null,null,null,null,null,null,null,null,null,null,null,null,0]
[null,null,null,null,null,null,null,null,null,null,null,null,0]
[null,null,null,null,null,null,null,null,null,null,null,null,0]
[null,null,null,null,null,null,null,null,null,null,null,null,{"$f":"F87+H87+J87+L87","v":0}]
[null,null,null,null,null,null,null,null,null,null,null,null,{"$f":"F88+H88+J88+L88","v":0}]
[null,null,null,null,null,null,null,null,null,null,null,null,{"$f":"F89+H89+J89+L89","v":0}]
["POLE BENDING  DIVISION"]
["55 - Youth"]
[null,347,"Leah Prosper","Topper","2nd",1,null,null,null,null,null,null,{"$f":"F92+H92+J92+L92","v":1}]
[null,343,"Priscilla Munevar-Pelton","Tally","1st",2,null,null,null,null,null,null,{"$f":"F93+H93+J93+L93","v":2}]
[null,null,null,null,null,null,null,null,null,null,null,null,{"$f":"F94+H94+J94+L94","v":0}]
[null,null,null,null,null,null,null,null,null,null,null,null,{"$f":"F95+H95+J95+L95","v":0}]
[null,null,null,null,null,null,null,null,null,null,null,null,{"$f":"F96+H96+J96+L96","v":0}]
[null,null,null,null,null,null,null,null,null,null,null,null,0]
[null,null,null,null,null,null,null,null,null,null,null,null,0]
[null,null,null,null,null,null,null,null,null,null,null,null,0]
[null,null,null,null,null,null,null,null,null,null,null,null,0]
[null,null,null,null,null,null,null,null,null,null,null,null,0]
[null,null,null,null,null,null,null,null,null,null,null,null,0]
[null,null,null,null,null,null,null,null,null,null,null,null,0]
[null,null,null,null,null,null,null,null,null,null,null,null,0]
[null,null,null,null,null,null,null,null,null,null,null,null,{"$f":"F105+H105+J105+L105","v":0}]
["56 - Adult"]
[null,94,"Robyn Argue","Eyes in Overdrive","1st",3,null,null,null,null,null,null,{"$f":"F107+H107+J107+L107","v":3}]
[null,345,"Donna Livingston","Juice","3rd",1,null,null,null,null,null,null,{"$f":"F108+H108+J108+L108","v":1}]
[null,128,"Renee Armstrong","Jista Prince Robin","2nd",2,null,null,null,null,null,null,{"$f":"F109+H109+J109+L109","v":2}]
[null,null,null,null,null,null,null,null,null,null,null,null,{"$f":"F110+H110+J110+L110","v":0}]
[null,null,null,null,null,null,null,null,null,null,null,null,0]
[null,null,null,null,null,null,null,null,null,null,null,null,0]
[null,null,null,null,null,null,null,null,null,null,null,null,0]
[null,null,null,null,null,null,null,null,null,null,null,null,0]
[null,null,null,null,null,null,null,null,null,null,null,null,0]
[null,null,null,null,null,null,null,null,null,null,null,null,0]
[null,null,null,null,null,null,null,null,null,null,null,null,{"$f":"F117+H117+J117+L117","v":0}]
[null,null,null,null,null,null,null,null,null,null,null,null,0]
[null,null,null,null,null,null,null,null,null,null,null,null,0]
[null,null,null,null,null,null,null,null,null,null,null,null,0]
[null,null,null,null,null,null,null,null,null,null,null,null,0]
[null,null,null,null,null,null,null,null,null,null,null,null,0]
["KEY HOLE  DIVISION"]
["57 - Youth"]
[null,343,"Priscilla Munevar-Pelton","Tally","DQ",null,null,null,null,null,null,null,{"$f":"F125+H125+J125+L125","v":0}]
[null,347,"Leah Prosper","Topper","1st",2,null,null,null,null,null,null,{"$f":"F126+H126+J126+L126","v":2}]
[null,null,null,null,null,null,null,null,null,null,null,null,{"$f":"F127+H127+J127+L127","v":0}]
[null,null,null,null,null,null,null,null,null,null,null,null,{"$f":"F128+H128+J128+L128","v":0}]
[null,null,null,null,null,null,null,null,null,null,null,null,{"$f":"F129+H129+J129+L129","v":0}]
[null,null,null,null,null,null,null,null,null,null,null,null,0]
[null,null,null,null,null,null,null,null,null,null,null,null,0]
[null,null,null,null,null,null,null,null,null,null,null,null,0]
[null,null,null,null,null,null,null,null,null,null,null,null,0]
[null,null,null,null,null,null,null,null,null,null,null,null,0]
[null,null,null,null,null,null,null,null,null,null,null,null,0]
[null,null,null,null,null,null,null,null,null,null,null,null,0]
[null,null,null,null,null,null,null,null,null,null,null,null,0]
[null,null,null,null,null,null,null,null,null,null,null,null,{"$f":"F138+H138+J138+L138","v":0}]
["58 - Adult"]
[null,94,"Robyn Argue","Eyes in Overdrive","1st",3,null,null,null,null,null,null,{"$f":"F140+H140+J140+L140","v":3}]
[null,345,"Donna Livingston","Juice","3rd",1,null,null,null,null,null,null,{"$f":"F141+H141+J141+L141","v":1}]
[null,129,"Melissa Leduc","Liberty","2nd",2,null,null,null,null,null,null,{"$f":"F142+H142+J142+L142","v":2}]
[null,null,null,null,null,null,null,null,null,null,null,null,{"$f":"F143+H143+J143+L143","v":0}]
[null,null,null,null,null,null,null,null,null,null,null,null,0]
[null,null,null,null,null,null,null,null,null,null,null,null,0]
[null,null,null,null,null,null,null,null,null,null,null,null,0]
[null,null,null,null,null,null,null,null,null,null,null,null,0]
[null,null,null,null,null,null,null,null,null,null,null,null,0]
[null,null,null,null,null,null,null,null,null,null,null,null,0]
[null,null,null,null,null,null,null,null,null,null,null,null,0]
[null,null,null,null,null,null,null,null,null,null,null,null,0]
[null,null,null,null,null,null,null,null,null,null,null,null,0]
[null,null,null,null,null,null,null,null,null,null,null,null,{"$f":"F153+H153+J153+L153","v":0}]
[null,null,null,null,null,null,null,null,null,null,null,null,{"$f":"F154+H154+J154+L154","v":0}]
[null,null,null,null,null,null,null,null,null,null,null,null,{"$f":"F155+H155+J155+L155","v":0}]
[null,null,null,null,null,null,null,null,null,null,null,null,{"$f":"F156+H156+J156+L156","v":0}]
[null,null,null,null,null,null,null,null,null,null,null,null,0]
[null,null,null,null,null,null,null,null,null,null,null,null,0]
[null,null,null,null,null,null,null,null,null,null,null,null,0]
[null,null,null,null,null,null,null,null,null,null,null,null,0]
[null,null,null,null,null,null,null,null,null,null,null,null,0]
[null,null,null,null,null,null,null,null,null,null,null,null,0]
[null,null,null,null,null,null,null,null,null,null,null,null,{"$f":"F163+H163+J163+L163","v":0}]
[null,null,null,null,null,null,null,null,null,null,null,null,{"$f":"F164+H164+J164+L164","v":0}]
[null,null,null,null,null,null,null,null,null,null,null,null,{"$f":"F165+H165+J165+L165","v":0}]